Cogmind - Beta 13 @@@ ROGUE MODE // 2024.07.30 @ 21:20:32 Player: DAFFA Result: Destroyed by DAS Turret with DAS Cannon Performance ------------- Evolutions (0) 0 Regions Visited (3) 600 Robots Destroyed (11) 55 Value Destroyed (127) 127 Prototype IDs (0) 0 Alien Tech Used (0) 0 Bonus (0) 0 TOTAL SCORE: 782 Bonus ------- None Cogmind --------- Core Integrity 0/250 Matter 292/300 Energy 99/100 System Corruption 1% Temperature Cool (0) Movement Core (50) Location -10/Exiles Parts ------- > --- POWER (1) -------- (None) > --- PROPULSION (2) --- (None) > --- UTILITY (2) ------ Transport Network Coupler > --- WEAPON (2) ------- Medium Laser > --- INVENTORY (5) ---- Visual Processing Unit Small Laser Mini Grenade Launcher Plasma Cutter Heavy Hammer Peak State ------------ > --- POWER ------------ Ion Engine > --- PROPULSION ------- Wheel Compact Wheel > --- UTILITY ---------- Weapon Shielding > --- WEAPON ----------- Assault Rifle Welding Torch > --- INVENTORY -------- Small Laser [Rating: 6] Favorites ----------- Power Ion Engine Engine Ion Engine Propulsion Wheel Wheel Wheel Utility Weapon Shielding Processor Transport Network Coupler Protection Weapon Shielding Weapon Medium Laser Energy Gun Medium Laser Ballistic Gun Assault Rifle Launcher Rocket Launcher Special Weapon Welding Torch Build | -11 -10 -10 -10 ------- Run | Yrd Mat Min Exi Slots Evolved . | . . . . Power . | . . . . Propulsion . | . . . . Utility . | . . . . Weapon . | . . . . Parts Attached 11 | 5 5 1 . Power 1 | 1 . . . Engine 1 | 1 . . . Core . | . . . . Reactor . | . . . . Propulsion 2 | 2 . . . Treads . | . . . . Leg . | . . . . Wheel 2 | 2 . . . Hover . | . . . . Flight . | . . . . Utility 2 | . 2 . . Device . | . . . . Storage . | . . . . Processor 1 | . 1 . . Hackware . | . . . . Protection 1 | . 1 . . Artifact . | . . . . Weapon 6 | 2 3 1 . Energy Gun 3 | 1 2 . . Energy Cannon . | . . . . Ballistic Gun 1 | 1 . . . Ballistic Cannon . | . . . . Launcher 1 | . . 1 . Special Weapon 1 | . 1 . . Impact Weapon . | . . . . Slashing Weapon . | . . . . Piercing Weapon . | . . . . Special Melee Weapon . | . . . . Unidentified Prototypes . | . . . . Parts Lost 7 | . 5 . 2 Power 1 | . 1 . . Propulsion 2 | . 2 . . Utility 1 | . . . 1 Weapon 3 | . 2 . 1 Highest Loss Streak 3 | . 3 . 2 To Critical Strikes . | . . . . Average Slot Usage (%) 62 | . 70 55 53 Engine 6 | . 13 . . Wheel 4 | . 10 . . Processor 10 | . 7 14 14 Protection 12 | . 12 14 10 Energy Gun 11 | . 9 14 14 Ballistic Gun 6 | . 13 . . Launcher 6 | . . 12 14 Special Weapon 2 | . 4 . . Naked Turns . | . . . . Heaviest Build 10 | 8 10 7 7 Greatest Support 26 | 26 26 3 3 Greatest Overweight (x) 3 | . 3 2 2 Average Overweight (x) 1 | . 1 1 1 Largest Inventory Capacity 5 | 5 5 5 5 Average Capacity 5 | 5 5 5 5 Most Carried 5 | 2 5 5 5 Average Carried 3 | . 1 5 4 Final Capacity 5 | 5 5 5 5 Final Carried 5 | . 5 5 5 Class Distribution -------------------- 100% | Mutant Dominant Class ---------------- Mutant | -10/Materials Mutant | -10/Mines Mutant | -10/Exiles Resources | -11 -10 -10 -10 ----------- Run | Yrd Mat Min Exi Matter Collected 385 | 216 159 10 . Remotely . | . . . . Salvage Created 293 | . 274 . 19 Parts 21 | . 21 . . Haulers Intercepted 2 | . 2 . . Recyclers Shooed . | . . . . Parts Field Recycled . | . . . . Retrieved Matter . | . . . . Parts Self-Destructed . | . . . . Prevented . | . . . . Kills | -11 -10 -10 -10 ------- Run | Yrd Mat Min Exi Combat Hostiles Destroyed 9 | . 7 . 2 Guns 7 | . 7 . . AOE 2 | . . . 2 Classes Destroyed 6 | . 5 . 1 Hauler 2 | . 2 . . Mechanic 1 | . 1 . . Watcher 1 | . 1 . . Swarmer 6 | . 6 . . Grunt 1 | . 1 . . Assembled 2 | . . . 2 Best Kill Streak 6 | . 6 . 2 Combat Bots Only 4 | . 4 . 2 Max Kills in Single Turn 2 | . 2 . 2 Gunslinging . | . . . . Exploded 2 | . . . 2 Melee . | . . . . Uniques/NPCs Destroyed . | . . . . Combat | -11 -10 -10 -10 -------- Run | Yrd Mat Min Exi Hostile Shots Fired 77 | . 66 . 11 Missed 15 | . 13 . 2 Damage Taken 712 | . 479 . 233 Core 269 | . 137 . 132 Absorbed by Shields . | . . . . Redirected to Shielding 54 | . 41 . 13 Core Remaining (%) 100 | 100 . . . Volleys Fired 30 | . 30 . . Largest 2 | . 2 . . Hottest 70 | . 70 . . Shots Fired 52 | . 51 . 1 Gun 45 | . 45 . . Cannon . | . . . . Launcher 1 | . . . 1 Special 6 | . 6 . . Kinetic 30 | . 30 . . Thermal 21 | . 21 . . Explosive 1 | . . . 1 Electromagnetic . | . . . . Robot Hit Streak 7 | . 7 . 3 Robot Miss Streak 3 | . 3 . . Penetration Max . | . . . . Secondary Targets 1 | . 1 . . Max Gunslinging Chain 1 | . 1 . . Shots Hit Robots 28 | . 27 . 1 Core Hits 23 | . 15 . 8 Critical Kills . | . . . . Critical Parts Destroyed . | . . . . Critical Strikes . | . . . . Melee Attacks . | . . . . Impact . | . . . . Slashing . | . . . . Piercing . | . . . . Sneak Attacks . | . . . . Combat Hostiles . | . . . . Follow-up Attacks . | . . . . Damage Inflicted 551 | . 397 1 153 Guns 388 | . 388 . . Cannons . | . . . . Explosions 153 | . . . 153 Melee . | . . . . Ramming 7 | . 6 1 . Kinetic 261 | . 261 . . Thermal 130 | . 130 . . Explosive 153 | . . . 153 Electromagnetic . | . . . . Impact . | . . . . Slashing . | . . . . Piercing . | . . . . Highest Corruption 1 | . 1 1 1 Average Corruption 1 | . 1 1 1 Corruption Purged . | . . . . Corruption Blocked . | . . . . Effects 9 | . 3 5 1 Message Errors 1 | . . 1 . Matter Fused 1 | . . 1 . Heat Flow Errors 2 | . 1 1 . Energy Discharges 2 | . 2 . . Data Loss (minor) 2 | . . 2 . Misfires 1 | . . . 1 Overload Shots . | . . . . Overflow Damage . | . . . . Projectiles . | . . . . Explosions . | . . . . Melee . | . . . . Knockbacks . | . . . . Impact . | . . . . Kinetic . | . . . . Secondary . | . . . . Self-Inflicted Damage 3 | . 3 . . Shots . | . . . . Rammed 2 | . 1 1 . Targets Rammed 2 | . 1 1 . Kicked . | . . . . Crushed . | . . . . Highest Temperature 264 | . 204 264 . Average Temperature 52 | . 32 139 . Received Heat Transfer 126 | . 126 . . Siege Activations . | . . . . Robots Corrupted . | . . . . Combat Hostiles . | . . . . Parts Fried . | . . . . Impact Corruptions . | . . . . Robots Melted . | . . . . Combat Hostiles . | . . . . Parts Melted . | . . . . Heat Transferred 348 | . 348 . . Parts Sabotaged . | . . . . Parts Stolen . | . . . . Parts Stripped . | . . . . Power Chain Reactions . | . . . . Alert | -11 -10 -10 -10 ------- Run | Yrd Mat Min Exi Peak Influence 187 | . 187 . . Initial . | . . . . Average 41 | . 83 . . Maximum Alert Level . | . . . . Low Security (%) 100 | 100 100 100 . Level 1 . | . . . . Level 2 . | . . . . Level 3 . | . . . . Level 4 . | . . . . Level 5 . | . . . . High Security . | . . . . Max Security . | . . . . Squads Dispatched 2 | . 2 . . Investigation . | . . . . Extermination . | . . . . Reinforcement 2 | . 2 . . Assault . | . . . . Garrison . | . . . . Intercept . | . . . . Searches Triggered . | . . . . Construction Impeded . | . . . . Haulers Reinforced . | . . . . Active Scanning Responses . | . . . . Cargo Convoy Interrupts . | . . . . Stealth | -11 -10 -10 -10 --------- Run | Yrd Mat Min Exi Distress Signals 1 | . 1 . . Communications Jammed . | . . . . Distress Signals . | . . . . Times Spotted 24 | . 15 . 9 Peak Tracking Total 9 | . 6 . 9 Tactical Retreats 1 | . . . 1 Traps | -11 -10 -10 -10 ------- Run | Yrd Mat Min Exi Traps Triggered 1 | . 1 . . Indirectly . | . . . . Trap Hack Attempts . | . . . . Triggered . | . . . . Disarmed . | . . . . Reprogrammed . | . . . . Reused . | . . . . Traps Extracted . | . . . . Installed . | . . . . Triggered . | . . . . Machines | -11 -10 -10 -10 ---------- Run | Yrd Mat Min Exi Machines Disabled 2 | . . . 2 Max in Single Turn 2 | . . . 2 Machines Repaired . | . . . . Machines Dismantled . | . . . . Machines Sabotaged . | . . . . Overloaded Fab Kills . | . . . . Hacking | -11 -10 -10 -10 --------- Run | Yrd Mat Min Exi Machines Accessed . | . . . . Terminals . | . . . . Fabricators . | . . . . Repair Stations . | . . . . Recycling Units . | . . . . Scanalyzers . | . . . . Garrison Access . | . . . . Total Hacks . | . . . . Successful . | . . . . Failed . | . . . . Catastrophic . | . . . . Database Lockouts . | . . . . Manual . | . . . . Terminals . | . . . . Fabricators . | . . . . Repair Stations . | . . . . Recycling Units . | . . . . Scanalyzers . | . . . . Garrison Access . | . . . . Terminal Hacks . | . . . . Fabricator Hacks . | . . . . Repair Station Hacks . | . . . . Recycling Unit Hacks . | . . . . Scanalyzer . | . . . . Garrison Access Hacks . | . . . . Unauthorized Hacks . | . . . . Terminals . | . . . . Fabricators . | . . . . Repair Stations . | . . . . Recycling Units . | . . . . Scanalyzers . | . . . . Garrison Access . | . . . . Data Cores Recovered . | . . . . Used . | . . . . Hacking Detections . | . . . . Full Trace Events . | . . . . Feedback Events . | . . . . Feedback Blocked . | . . . . Robot Schematics Acquired . | . . . . Robots Built . | . . . . Authchips . | . . . . Time . | . . . . Total Robot Build Rating . | . . . . Part Schematics Acquired . | . . . . Parts Built . | . . . . Authchips . | . . . . Time . | . . . . Total Part Build Rating . | . . . . Parts Repaired . | . . . . Time . | . . . . Parts Recycled . | . . . . Recycled Matter . | . . . . Retrieved Matter . | . . . . Retrieved Components . | . . . . Parts Scanalyzed . | . . . . Part Schematics Acquired . | . . . . Parts Damaged . | . . . . Bothacking | -11 -10 -10 -10 ------------ Run | Yrd Mat Min Exi Used RIF Installer . | . . . . Robots Hacked . | . . . . Non-combat . | . . . . Combat . | . . . . Robot Hacks Applied . | . . . . Relay Couplers Released . | . . . . Fabnet Peak Effective % . | . . . . Robots Rewired . | . . . . Allies Hacked . | . . . . Hacks Repelled . | . . . . Allies | -11 -10 -10 -10 -------- Run | Yrd Mat Min Exi Total Allies 3 | . . 3 . Largest Group 3 | . . 3 3 Highest-Rated Group 40 | . . 40 40 Highest-Rated Ally 16 | . . 16 16 Total Orders . | . . . . Ally Attacks 16 | . . . 16 Total Damage 142 | . . . 142 Kills 4 | . . . 4 Allies Corrupted . | . . . . Allies Melted . | . . . . Intel | -11 -10 -10 -10 ------- Run | Yrd Mat Min Exi Robot Analysis Total . | . . . . Derelict Logs Recovered 1 | . . 1 . Drone Launches . | . . . . Drone Recoveries . | . . . . Exploration | -11 -10 -10 -10 ------------- Run | Yrd Mat Min Exi Turns Passed 1104 | 55 495 434 120 Spaces Moved 709 | 54 225 344 86 Core 566 | 9 127 344 86 Treads . | . . . . Legs . | . . . . Wheels 143 | 45 98 . . Hover . | . . . . Flight . | . . . . Fastest Speed 50 | 50 50 50 100 Average Speed 124 | 83 130 123 134 Slowest Speed 200 | 90 200 150 150 Overloaded Moves . | . . . . Propulsion Burnouts . | . . . . Robots Hopped . | . . . . Cave-ins Triggered . | . . . . Exploration Rate (%) 36 | 4 44 64 35 Regions Visited 3 Branch Regions 2 Pre-discovered Areas . | . . . . Known Exits Taken . | . . . . Unknown Exits Taken 3 | 1 1 1 . Scrap Searched 2 | . . 2 . Spaces Dug . | . . . . Terrain Destroyed 8 | . . . 8 Melee . | . . . . Projectile . | . . . . AOE 8 | . . . 8 Terrain Rammed . | . . . . Walls Destroyed . | . . . . Machines Disabled . | . . . . Actions | -11 -10 -10 -10 --------- Run | Yrd Mat Min Exi Total 878 | 63 370 353 92 Wait 112 | . 102 8 2 Move 706 | 53 224 343 86 Hop . | . . . . Pick Up 15 | 5 8 . 2 Fast Attach 1 | . . 1 . Attach 8 | 5 3 . . Detach . | . . . . Swap 2 | . 2 . . Drop 2 | . . . 2 Fire 30 | . 30 . . Melee . | . . . . Ram 2 | . 1 1 . Kick . | . . . . Crush . | . . . . Escape Stasis . | . . . . Rewire . | . . . . Trap . | . . . . Miscellaneous . | . . . . Route ------- -11/Scrapyard -10/Materials -10/Mines (discovered 3 exits: [*Mat x2] / [*Exi]) -10/Exiles History --------- Turn | Location | Event 22 | -11/Scrapyard | Discovered new exit (range 16) 56 | -11/Scrapyard | Entered Materials 272 | -10/Materials | Lost 3 parts (2n1w) 307 | -10/Materials | Build established: Mutant 399 | -10/Materials | Discovered new exit (range 12) 536 | -10/Materials | Core integrity fell below 50% 551 | -10/Materials | Entered Mines 553 | -10/Mines | Met a Derelict bent on vengeance 572 | -10/Mines | Learned location of 1 exit from Materials 603 | -10/Mines | Received a Rocket Launcher from a helpful Derelict 641 | -10/Mines | Assisted by bots powering up and referring to "LRC-V3" 856 | -10/Mines | Discovered new exit (range 9) 949 | -10/Mines | Discovered new exit (range 5) 977 | -10/Mines | Deemed a non-threat by the Exiles lab entrance 977 | -10/Mines | Discovered new exit (range 5) 985 | -10/Mines | Entered Exiles 985 | -10/Exiles | Accompanied by 3 allies 1031 | -10/Exiles | Met 8R-AWN 1056 | -10/Exiles | Met EX-HEX 1058 | -10/Exiles | Attacked by the Exiles 1105 | -10/Exiles | Core integrity fell below 20% 1105 | -10/Exiles | Destroyed by DAS Turret with DAS Cannon Last Messages --------------- 01066_ HV Slug penetrates Trooper 1a. 01066_ Trooper 1a suffers critical hit (Destroy). 01066_ HV Slug penetrates Trooper 1a. 01070_ HV Slug penetrates Machine. 01070_ as-18681 destroyed. 01072_ HV Slug penetrates Trooper 1a. 01072_ Trooper 1a suffers critical hit (Destroy). 01072_ Trooper 1a destroyed. 01078_ Penetrated by HV Slug. 01078_ Weapon Shielding destroyed. 01078_ HV Slug penetrates Machine. 01078_ Machine disabled. 01078_ Penetrated by HV Slug. 01081_ 5X-HC8(z) destroyed. 01082_ Penetrated by HV Slug. 01089_ HV Slug penetrates Mercenary 1a. 01089_ Mercenary 1a destroyed. 01105_ Rocket Launcher destroyed. Map ----- +----------------------------------------------------+ | ?????????????????????????????????????????????????? | | ?????????????????????????????????????????????????? | | ?????????????????????????????????????????????????? | | ?????????????????????????????????????????????????? | | ?????????????????????????????????????????????????? | | ?????????????????????????????????????????????????? | | ?????????????????????????????????????????????????? | | ?????????????????????????????????????????????????? | | ?????????????????????????????????????????????????? | | ?????????????????????????????????????????????????? | | ????????????????????????????????? ???????????? | | ????????????????????????????????" ???????????? | | ????????????????????????????????" ???????????? | | ???????????????????????????????#" ???????????? | | ???????????????????????????????#" #???????????? | | ?????????????????# ???????????#"" #???????????? | | ???????????????#?# ##??######"" #???????????? | | ?????????????###X# #"###""""""" ##??????????? | | ???????????? """""" " "" ##???####### | | ???????????? "" """ " #####"""""" | | ???????????? " " " """ | | ??????????? "" | | ??????????? " | | ?????????? | | ?????????? =% | | ??????????" @ % | | ???????????"" """""" | | ??????????" %######""" | | ??????????? ""##????#####""" | | ???????????" """##?????????##""" | | ???????????? """##???????????#""" | | ???????????? ""?????????????#"" | | ???????????? #????????????#"""" | | ????????????? ????????????"" | | ????????????? ????????????"" | | ?????????????? ????????????? | | ?????????????? ???????????????? | | ???????????????? ???????????????? " | | ?????????????????????????????????? "" | | ?????????????????????????????????? ##""" " " "" | | ?????????????????????????????????????####""" " # | | ????????????????????????????????????????###""""## | | ??????????????????????????????????????????#####?## | | ?????????????????????????????????????????????????? | | ?????????????????????????????????????????????????? | | ?????????????????????????????????????????????????? | | ?????????????????????????????????????????????????? | | ?????????????????????????????????????????????????? | | ?????????????????????????????????????????????????? | | ?????????????????????????????????????????????????? | +----------------------------------------------------+ Best States ------------- Heat Dissipation 25 Energy Generation 10 Energy Capacity 250 Matter Stores 300 Matter Capacity 300 Sight Range 16 Terrain Scan Density 10 Weapon Shielding 33 Evasion (%) 50 Item Schematics ----------------- None Robot Schematics ------------------ None Fabricated ------------ Nothing Alien Tech Used ----------------- None Achievements -------------- Dramatic Entrance Challenges ------------ None Game ------ Seed InsulatedServoWeb Manual? 0 Play Time 00:10:35 Cumulative 9.9 hours Start 2024.07.30 @ 21:11:55 End 2024.07.30 @ 21:20:32 Sessions 1 Manual Loads 0 Difficulty Rogue Special Mode None Game No. 17 Rogue 13 Adventurer 4 Explorer 0 Win Type - Total 0 Types 0/0/0/0/0/0/0/0/0 Lore% 3 Gallery% 15 Achievement% 13 Wizard Run 0 Options --------- Layout 1 ASCII 0 Keyboard 0 Movement Mouse Keybinds 0 Fullscreen 2 Font 24/Smallcaps Map View 50x35 Zoom Use 0% Tactical HUD 1 Map Filters NONE Filters NONE Steam 1 RUN: c908904d-3571-44ec-9a26-7ac245ea3dc3